bitfinex-derivatives/quotes_SOLF0:USTF0_20250424
["timestamp","ask_amount","ask_price","bid_price","bid_amount"]
[1745523967413,23.8488379,151.65,151.53,47.6288379]
[1745523968017,6.5933,151.61,151.53,47.6288379]
[1745523970017,6.5936,151.6,151.53,47.6288379]
[1745523970717,6.594,151.59,151.53,47.6288379]
[1745523971615,29.6037,151.66,151.53,23.78]
[1745523971616,23.8488379,151.62,151.53,23.78]
[1745523971813,23.8488379,151.59,151.51,3.9082]
[1745523972019,6.5964,151.54,151.52,23.76]
[1745523972216,23.8488379,151.56,151.52,23.76]
[1745523973218,6.5965,151.53,151.52,23.76]
[1745523974219,6.5977,151.51,151.49,23.76]
[1745523974420,23.8488379,151.53,151.49,23.76]
[1745523974820,6.5978,151.5,151.49,23.76]
[1745523980324,23.8488379,151.53,151.46,23.76]
[1745523980821,6.5991,151.47,151.46,23.76]
[1745523981623,23.8488379,151.5,151.43,23.76]
[1745523981624,6.6008,151.44,151.43,23.76]
[1745523984827,6.6004,151.45,151.43,23.76]
[1745523985024,23.8488379,151.5,151.43,23.76]
[1745523985326,6.6005,151.44,151.43,23.76]
[1745523985527,23.8488379,151.5,151.43,23.76]
[1745523985722,23.8488379,151.53,151.43,23.76]
[1745523985928,6.5994,151.47,151.43,23.76]
[1745523986226,23.8488379,151.53,151.43,23.76]
[1745523986427,6.5993,151.47,151.43,23.76]
[1745523986723,23.8488379,151.53,151.43,23.76]
[1745523987123,6.5999,151.46,151.43,23.76]
[1745523988330,6.5999,151.46,151.43,30.3608]
[1745523990527,6.6003,151.45,151.43,23.76]
[1745523991027,6.6005,151.44,151.43,23.76]
[1745523994334,21.53076179,151.44,151.43,23.76]
[1745523994534,14.93026179,151.44,151.39,23.76]
[1745523995029,6.6022,151.4,151.39,23.76]
[1745523995334,14.93026179,151.42,151.39,23.76]
[1745523995832,6.602,151.41,151.38,23.76]
[1745523997034,6.6023,151.4,151.38,23.76]
[1745523999930,6.6019,151.41,151.38,30.363]
[1745524000135,14.93026179,151.44,151.38,23.76]
[1745524000840,6.6026,151.39,151.38,23.76]
[1745524002538,6.6024,151.4,151.38,23.76]
[1745524003139,6.6026,151.39,151.38,23.76]
[1745524004040,6.6035,151.37,151.35,23.76]
[1745524004941,6.6033,151.38,151.35,23.76]
[1745524006338,6.6028,151.39,151.35,30.3642]
[1745524007440,6.6031,151.38,151.35,23.76]
[1745524008334,6.6035,151.37,151.35,23.76]
[1745524008743,6.6039,151.36,151.35,23.76]
[1745524009337,6.6037,151.37,151.35,23.76]
[1745524009744,14.93026179,151.38,151.35,23.76]
[1745524010043,6.6039,151.36,151.35,23.76]
[1745524012446,6.6044,151.35,151.32,23.76]
[1745524013045,14.93026179,151.38,151.32,23.76]
[1745524013344,6.6042,151.36,151.32,30.3657]
[1745524013545,6.6042,151.36,151.32,23.76]
[1745524013946,6.6042,151.36,151.32,30.3655]
[1745524014146,6.6045,151.35,151.32,23.76]
[1745524014845,6.6051,151.34,151.32,23.76]
[1745524015447,6.6052,151.33,151.32,23.76]
[1745524016146,6.6062,151.31,151.29,23.76]
[1745524017246,6.6066,151.3,151.29,23.76]
[1745524018049,6.6063,151.31,151.29,23.76]
[1745524019150,14.93026179,151.36,151.29,23.76]
[1745524019649,6.6051,151.34,151.3,6.6063]
[1745524019849,14.93026179,151.36,151.29,23.76]
[1745524020250,14.93026179,151.34,151.29,23.76]
[1745524020447,14.93026179,151.32,151.29,23.76]
[1745524022051,6.6066,151.3,151.29,23.76]
[1745524022448,6.6064,151.31,151.29,23.76]
[1745524023154,14.93026179,151.32,151.29,23.76]
[1745524023751,6.6066,151.3,151.29,23.76]
[1745524024250,14.93026179,151.32,151.26,23.78]
[1745524024551,6.6073,151.29,151.26,23.78]
[1745524024947,6.6073,151.29,151.26,30.3883]
[1745524025252,25.7344,151.37,151.26,38.71026179]
[1745524025552,14.93026179,151.31,151.26,23.78]
[1745524025750,14.93026179,151.33,151.26,23.78]
[1745524025953,14.93026179,151.33,151.27,6.6079]
[1745524026255,14.93026179,151.31,151.26,23.78]
[1745524026455,14.93026179,151.29,151.26,23.78]
[1745524027454,6.6077,151.28,151.26,23.78]
[1745524027649,14.93026179,151.31,151.26,23.78]
[1745524028656,6.6071,151.29,151.26,23.78]
[1745524029759,38.69026179,151.33,151.26,23.78]
[1745524029949,14.93026179,151.33,151.26,23.78]
[1745524030358,6.6064,151.31,151.26,23.78]
[1745524030959,6.6066,151.3,151.26,30.3879]
[1745524031261,14.93026179,151.33,151.26,23.78]
[1745524031757,6.6069,151.3,151.26,30.3883]
[1745524032061,6.6069,151.3,151.26,30.3881]
[1745524032560,6.607,151.29,151.23,14.93026179]
[1745524032762,14.93026179,151.33,151.25,6.6085]
[1745524033062,6.6075,151.28,151.25,6.6085]
[1745524033763,6.6079,151.27,151.24,30.389]
[1745524034162,6.6079,151.27,151.25,6.6086]
[1745524034866,14.93026179,151.33,151.27,6.6079]
[1745524035066,16.80736179,151.38,151.28,23.78]
[1745524035258,14.93026179,151.38,151.29,14.93026179]
[1745524035454,23.78,151.4,151.33,6.6052]
[1745524035455,6.604,151.36,151.33,6.6052]
[1745524035764,6.604,151.36,151.34,23.78]
[1745524036064,14.93026179,151.4,151.34,30.3848]
[1745524036263,14.93026179,151.36,151.31,23.78]
[1745524036459,6.6057,151.32,151.31,23.78]
[1745524038966,6.6053,151.33,151.31,23.78]
[1745524039968,21.53516179,151.34,151.31,23.78]
[1745524040565,6.6053,151.33,151.31,23.78]
[1745524040763,14.93026179,151.34,151.31,23.78]
[1745524041372,6.6055,151.33,151.31,23.78]
[1745524041870,14.93026179,151.34,151.31,23.78]
[1745524043569,6.6052,151.33,151.31,23.78]
[1745524044076,6.6057,151.32,151.31,23.78]
[1745524045573,21.53536179,151.34,151.31,23.78]
[1745524045870,14.93026179,151.36,151.31,23.78]
[1745524046272,6.6053,151.33,151.31,23.78]
[1745524046673,14.93026179,151.36,151.31,23.78]
[1745524046872,6.6048,151.35,151.31,30.386]
[1745524047374,9.5733,151.34,151.31,30.386]
[1745524047573,23.78,151.39,151.32,6.6057]
[1745524047772,9.5733,151.35,151.31,23.78]
[1745524048763,16.1778,151.35,151.31,30.3859]
[1745524049171,9.5733,151.34,151.31,23.78]
[1745524049372,9.5733,151.32,151.31,23.78]
[1745524049675,16.179,151.32,151.31,23.78]
[1745524049873,6.6057,151.32,151.31,23.78]
[1745524050076,16.179,151.32,151.31,23.78]
[1745524050368,9.5733,151.33,151.31,23.78]
[1745524050575,9.5733,151.34,151.31,23.78]
[1745524050768,6.6056,151.33,151.31,23.78]
[1745524052570,16.179,151.32,151.31,23.78]
[1745524053172,9.5733,151.32,151.31,23.78]
[1745524053472,16.1788,151.33,151.31,23.78]
[1745524058078,6.6057,151.32,151.31,23.78]
[1745524060181,9.5733,151.33,151.28,23.78]
[1745524060680,9.5733,151.33,151.29,6.6068]
[1745524060883,16.1786,151.33,151.29,6.6068]
[1745524061281,16.1786,151.33,151.3,6.6065]
[1745524061782,16.1786,151.33,151.29,6.6068]
[1745524062384,16.1786,151.33,151.3,6.6065]
[1745524062585,9.5733,151.34,151.29,9.5733]
[1745524062985,16.1783,151.34,151.31,6.6061]
[1745524063280,9.5733,151.34,151.32,23.78]
[1745524063584,16.1784,151.34,151.32,23.78]
[1745524063885,9.5733,151.34,151.32,23.78]
[1745524064083,23.76,151.39,151.32,23.78]
[1745524064379,9.5733,151.34,151.32,23.78]
[1745524065284,16.1785,151.34,151.32,23.78]
[1745524065478,9.5733,151.34,151.32,23.78]
[1745524066887,6.6052,151.33,151.32,23.78]
[1745524068686,16.1783,151.34,151.32,23.78]
[1745524069887,6.6052,151.33,151.32,23.78]
[1745524070488,16.1783,151.34,151.32,23.78]
[1745524070990,9.5733,151.34,151.32,23.78]
[1745524071689,6.605,151.34,151.32,23.78]
[1745524071985,9.5733,151.35,151.32,23.78]
[1745524072287,6.6052,151.33,151.32,23.78]
[1745524076185,23.76,151.39,151.32,23.78]
[1745524076387,9.5733,151.35,151.32,23.78]
[1745524076890,6.6051,151.34,151.32,23.78]
[1745524077692,16.1779,151.35,151.32,23.78]
[1745524078486,9.5733,151.35,151.32,23.78]
[1745524078791,23.76,151.39,151.32,23.78]
[1745524078988,9.5733,151.35,151.32,30.3856]
[1745524079493,16.1779,151.35,151.32,30.3856]
[1745524080095,16.1779,151.35,151.32,23.78]
[1745524080696,23.76,151.39,151.32,23.78]
[1745524080897,9.5733,151.36,151.32,23.78]
[1745524081091,9.5733,151.37,151.33,9.5733]
[1745524081502,9.5733,151.37,151.34,6.6046]
[1745524081700,9.5733,151.37,151.33,9.5733]
[1745524081906,9.5733,151.37,151.34,6.95804811]
[1745524082109,16.1771,151.37,151.35,6.95804811]
[1745524082409,6.6038,151.37,151.36,6.95804811]
[1745524082611,9.5733,151.37,151.36,6.95804811]
[1745524084309,16.1768,151.37,151.36,6.95804811]
[1745524084609,9.5733,151.37,151.36,6.95804811]
[1745524085600,16.1768,151.37,151.32,33.3533]
[1745524085904,9.5733,151.37,151.33,6.605]
[1745524086101,6.6042,151.36,151.33,6.605]
[1745524086512,16.1777,151.35,151.32,30.3855]
[1745524086809,9.5733,151.34,151.32,23.78]
[1745524087009,9.5733,151.35,151.32,23.78]
[1745524087211,9.5733,151.4,151.34,9.5733]
[1745524087511,9.5733,151.4,151.36,9.5733]
[1745524087709,16.1757,151.4,151.36,23.76]
[1745524088309,16.1757,151.4,151.36,30.3635]
[1745524088511,16.1757,151.4,151.36,23.76]
[1745524089411,9.5733,151.4,151.37,6.6033]
[1745524089609,9.5733,151.41,151.36,33.3333]
[1745524090008,6.6012,151.43,151.39,6.6026]
[1745524090204,9.5733,151.43,151.4,23.76]
[1745524090400,9.5733,151.44,151.4,23.76]
[1745524090606,16.1729,151.46,151.41,9.5733]
[1745524091009,16.1729,151.46,151.42,6.601]
[1745524091208,9.5733,151.46,151.41,9.5733]
[1745524091511,9.5733,151.46,151.42,6.601]
[1745524091708,9.5733,151.46,151.41,9.5733]
[1745524092208,9.5733,151.46,151.42,9.5733]
[1745524092410,16.1731,151.46,151.42,9.5733]
[1745524093512,6.6,151.45,151.42,9.5733]
[1745524094513,16.1731,151.46,151.42,9.5733]
[1745524094714,16.1731,151.46,151.42,16.1745]
[1745524094914,9.5733,151.47,151.43,9.5733]
[1745524095109,9.5733,151.48,151.44,33.3333]
[1745524095506,6.5992,151.47,151.44,33.3333]
[1745524096311,9.5733,151.48,151.45,6.6]
[1745524096614,9.5733,151.48,151.44,33.3333]
[1745524097512,16.1721,151.48,151.44,39.9335]
[1745524098313,6.5988,151.48,151.44,39.9335]
[1745524098513,16.1718,151.49,151.45,6.5999]
[1745524098714,16.1718,151.49,151.45,16.1732]
[1745524099316,6.5988,151.48,151.45,16.1732]
[1745524099817,16.1718,151.49,151.45,16.1732]
[1745524101219,16.1718,151.49,151.46,6.5995]
[1745524102117,6.5985,151.49,151.46,6.5995]
[1745524102518,16.1714,151.5,151.46,6.5995]
[1745524102819,9.5733,151.5,151.46,6.5995]
[1745524103119,9.5733,151.5,151.47,6.5991]
[1745524103418,9.5733,151.5,151.48,23.76]
[1745524103615,16.1715,151.5,151.48,23.76]
[1745524103816,9.5733,151.52,151.48,23.76]
[1745524104117,6.5972,151.52,151.48,33.3333]
[1745524104318,6.5972,151.52,151.49,16.1713]
[1745524105121,6.5972,151.52,151.49,9.5733]
[1745524105316,6.5974,151.51,151.48,33.3333]
[1745524105621,9.5733,151.52,151.48,23.76]
[1745524105825,9.5733,151.5,151.45,9.5733]
[1745524106125,9.5733,151.48,151.46,23.76]
[1745524106319,16.1724,151.47,151.46,23.76]
[1745524107724,6.6001,151.45,151.43,23.74]
[1745524108022,9.5733,151.45,151.43,23.74]
[1745524108624,16.1738,151.44,151.43,23.74]
[1745524109126,9.5733,151.44,151.4,23.74]
[1745524109326,16.175,151.42,151.4,23.74]
[1745524109520,9.5733,151.42,151.4,23.74]
[1745524109825,6.6018,151.41,151.4,23.74]
[1745524110328,16.1748,151.42,151.4,23.74]
[1745524111926,6.6015,151.42,151.4,23.74]
[1745524112124,9.5733,151.45,151.41,9.5733]
[1745524112929,9.5733,151.44,151.4,23.74]
[1745524113128,9.5733,151.43,151.4,23.74]
[1745524113631,16.1745,151.43,151.4,23.74]
[1745524114031,9.5733,151.43,151.4,23.74]
[1745524114227,16.1751,151.41,151.4,23.74]
[1745524114625,9.5733,151.41,151.37,23.76]
[1745524114825,9.5733,151.4,151.37,23.76]
[1745524115530,16.1755,151.4,151.37,23.76]
[1745524116029,16.1755,151.4,151.37,30.3634]
[1745524116932,16.1755,151.4,151.37,23.76]
[1745524117129,6.6028,151.39,151.37,23.76]
[1745524117331,9.5733,151.4,151.37,30.3635]
[1745524117530,9.5733,151.4,151.37,23.76]
[1745524117725,16.1757,151.4,151.37,23.76]
[1745524118131,16.1757,151.4,151.37,30.3635]
[1745524118831,6.6028,151.39,151.37,23.76]
[1745524119031,9.5733,151.4,151.37,23.76]
[1745524119334,16.1757,151.4,151.37,23.76]
[1745524119734,16.1757,151.4,151.37,30.3634]
[1745524120333,9.5733,151.4,151.38,6.6031]
[1745524120532,16.1753,151.41,151.38,6.6031]
[1745524122133,6.6022,151.4,151.37,30.3633]
[1745524122638,16.1755,151.4,151.37,30.3633]
[1745524124824,9.5733,151.4,151.37,30.3633]
[1745524125032,16.1753,151.41,151.38,6.603]
[1745524125933,16.1753,151.41,151.37,30.3633]
[1745524126233,16.1753,151.41,151.37,33.3333]
[1745524126436,9.5733,151.42,151.4,6.6022]
[1745524126632,9.5733,151.42,151.38,9.5733]
[1745524126936,16.1747,151.42,151.39,6.6024]
[1745524127233,9.5733,151.44,151.39,9.5733]
[1745524127633,9.5733,151.43,151.4,23.76]
[1745524128231,6.6016,151.42,151.4,23.76]
[1745524128533,9.5733,151.43,151.4,23.76]
[1745524128734,6.6018,151.41,151.4,23.76]
[1745524129635,16.1747,151.42,151.4,23.76]
[1745524130935,6.6018,151.41,151.4,23.76]
[1745524131136,16.1751,151.41,151.4,23.76]
[1745524134632,6.6018,151.41,151.4,23.76]
[1745524134833,16.1751,151.41,151.4,23.76]
[1745524141334,16.1742,151.42,151.4,23.76]
[1745524141539,9.5733,151.42,151.4,23.76]
[1745524142637,23.76,151.47,151.4,23.76]
[1745524142938,9.5733,151.44,151.4,30.3615]
[1745524143139,9.5733,151.44,151.4,23.76]
[1745524143339,9.5733,151.44,151.41,6.6008]
[1745524143835,16.1729,151.45,151.41,6.6008]
[1745524144638,6.5998,151.44,151.41,6.6008]
[1745524144839,6.5998,151.44,151.4,39.9346]
[1745524145143,6.6002,151.43,151.4,39.9346]
[1745524145341,9.5733,151.45,151.41,6.59971058]
[1745524145541,9.5733,151.45,151.42,6.59971058]
[1745524145841,9.5733,151.45,151.4,39.9346]
[1745524146044,6.6,151.44,151.41,6.60000859]
[1745524146340,6.6,151.44,151.42,6.60000859]
[1745524146542,6.6,151.44,151.4,39.9346]
[1745524146741,6.6,151.44,151.41,6.60078281]
[1745524146941,6.6,151.44,151.42,6.60078281]
[1745524147139,6.6,151.44,151.4,39.9346]
[1745524147334,6.6,151.44,151.41,6.60203501]
[1745524147644,9.5733,151.45,151.42,6.60203501]
[1745524147645,6.6002,151.43,151.42,6.60203501]
[1745524148239,6.6008,151.42,151.4,23.76]
[1745524148445,9.5733,151.42,151.41,6.60426855]
[1745524148641,6.6011,151.41,151.4,23.76]
[1745524148842,6.6011,151.41,151.4,30.3643232]
[1745524152853,9.5733,151.42,151.4,36.9657232]
[1745524153045,9.5733,151.44,151.41,6.6043232]
[1745524153245,9.5733,151.44,151.42,6.6043232]
[1745524153549,9.5733,151.44,151.4,30.3615]
[1745524153750,9.5733,151.44,151.41,6.62005774]
[1745524153942,6.6007,151.42,151.4,23.76]
[1745524154141,9.5733,151.44,151.41,6.62005885]
[1745524154350,9.5733,151.44,151.42,6.62005885]
[1745524154552,9.5733,151.44,151.4,23.76]
[1745524154751,6.6005,151.43,151.41,6.62011707]
[1745524154950,6.6005,151.43,151.42,6.62011707]
[1745524155844,6.6005,151.43,151.42,6.6201561]
[1745524156353,9.5733,151.44,151.42,6.61995766]
[1745524156549,9.5733,151.44,151.43,6.61995766]
[1745524157154,9.5733,151.47,151.43,6.61995766]
[1745524157354,9.5733,151.47,151.44,30.35995766]
[1745524157551,1.14927345,151.55,151.45,16.19151779]
[1745524157756,9.5733,151.56,151.51,9.5733]
[1745524158057,9.5733,151.56,151.52,23.74]
[1745524158457,6.5952,151.55,151.52,23.74]
[1745524159858,6.5952,151.55,151.53,1.64970433]
[1745524160058,9.5733,151.56,151.53,1.64970433]
[1745524160059,6.5954,151.54,151.53,1.64970433]
[1745524161563,6.5954,151.54,151.52,23.74]
[1745524161956,9.5733,151.56,151.52,23.74]
[1745524162560,6.5958,151.54,151.52,23.74]
[1745524163262,6.5959,151.53,151.52,23.74]
[1745524163770,6.5959,151.53,151.52,25.38974345]
[1745524164567,6.5959,151.53,151.52,23.74]
[1745524167468,3.8013,151.6,151.52,23.74]
[1745524167767,9.5733,151.55,151.52,23.74]
[1745524168571,6.5959,151.53,151.52,23.74]
[1745524175578,16.1691,151.54,151.52,23.74]
[1745524175874,6.5958,151.54,151.52,23.74]
[1745524176075,9.5733,151.56,151.52,23.74]
[1745524176277,6.5959,151.53,151.52,23.74]
[1745524187080,9.5733,151.55,151.52,23.74]
[1745524187283,9.5733,151.58,151.54,9.5733]
[1745524187680,3.8013,151.6,151.52,23.74]
[1745524187681,6.5949,151.56,151.53,9.5733]
[1745524190181,6.5953,151.55,151.53,9.5733]
[1745524190785,6.5953,151.55,151.52,23.74]
[1745524190985,9.5733,151.54,151.52,23.74]
[1745524191786,6.5959,151.53,151.52,23.74]
[1745524193487,6.5959,151.53,151.52,25.38971722]
[1745524194490,16.1689,151.54,151.52,25.38971722]
[1745524194886,16.1689,151.54,151.52,23.74]
[1745524195289,6.5959,151.53,151.52,23.74]
[1745524195592,6.5959,151.53,151.52,25.38970824]
[1745524197392,6.5959,151.53,151.52,32.31792454]
[1745524197691,6.5959,151.53,151.52,25.38970824]
[1745524198786,16.1689,151.54,151.52,25.38970824]
[1745524199093,9.5733,151.54,151.53,1.64970824]
[1745524199494,16.1687,151.54,151.53,1.64970824]
[1745524200293,6.5954,151.54,151.53,8.24e-06]
[1745524200488,9.5733,151.57,151.53,8.24e-06]
[1745524200892,2.042,151.58,151.53,8.24e-06]
[1745524201196,9.5733,151.57,151.51,33.2933]
[1745524201395,6.5952,151.55,151.52,6.64422846]
[1745524201596,6.5952,151.55,151.53,6.64422846]
[1745524201793,6.5952,151.55,151.54,6.64422846]
[1745524201994,6.5963,151.52,151.48,23.72]
[1745524202293,9.5733,151.55,151.48,23.72]
[1745524202294,9.5733,151.54,151.49,22.82313176]
[1745524202493,16.169,151.54,151.5,6.65253176]
[1745524202691,16.169,151.54,151.51,6.65253176]
[1745524202891,16.169,151.54,151.52,6.65253176]
[1745524203091,16.169,151.54,151.5,6.5969]
[1745524203794,6.596,151.53,151.49,16.1708]
[1745524203994,9.5733,151.56,151.51,9.5733]
[1745524204184,9.5733,151.57,151.53,9.5733]
[1745524204384,9.5733,151.59,151.55,9.5733]
[1745524204797,6.5939,151.58,151.55,9.5733]
[1745524205497,6.5943,151.57,151.55,9.5733]
[1745524205991,9.5733,151.58,151.53,9.5733]
[1745524206198,6.5939,151.58,151.54,16.1687]
[1745524206699,6.5939,151.58,151.55,9.5733]
[1745524206897,9.5733,151.6,151.56,23.72]
[1745524207295,6.5938,151.58,151.56,23.72]
[1745524207694,9.5733,151.6,151.56,23.72]
[1745524207894,9.5733,151.59,151.56,23.72]
[1745524208097,6.5939,151.58,151.56,23.72]
[1745524208394,9.5733,151.59,151.56,23.72]
[1745524208699,6.5935,151.59,151.56,23.72]
[1745524208891,9.5733,151.61,151.56,23.72]
[1745524209298,6.5939,151.58,151.56,23.72]
[1745524210398,27.7669,151.64,151.56,23.72]
[1745524210599,9.5733,151.59,151.56,23.72]
[1745524210801,6.5939,151.58,151.56,23.72]
[1745524211400,16.1667,151.59,151.56,23.72]
[1745524211699,9.5733,151.61,151.57,9.5733]
[1745524211899,6.5927,151.61,151.59,9.5733]
[1745524212100,9.5733,151.63,151.6,23.72]
[1745524212503,6.5922,151.62,151.6,23.72]
[1745524213201,6.5924,151.61,151.6,23.72]
[1745524213603,16.1657,151.61,151.6,23.72]
[1745524214402,6.5938,151.58,151.56,23.72]
[1745524214896,6.5935,151.59,151.56,23.72]
[1745524215202,9.5733,151.61,151.56,23.72]
[1745524215999,6.5939,151.58,151.56,23.72]
[1745524216203,9.5733,151.61,151.56,23.72]
[1745524216498,6.5941,151.57,151.56,23.72]
[1745524222106,16.1674,151.57,151.56,23.72]
[1745524224805,6.5941,151.57,151.56,23.72]
[1745524225004,3.8936,151.62,151.56,23.72]
[1745524225306,9.5733,151.61,151.56,23.72]
[1745524225903,6.5935,151.59,151.56,23.72]
[1745524226206,6.5935,151.59,151.57,6.73844828]
[1745524226407,9.5733,151.59,151.56,23.72]
[1745524226605,6.5937,151.58,151.57,6.73863758]
[1745524226807,9.5733,151.59,151.57,6.73863758]
[1745524227107,9.5733,151.59,151.56,23.72]
[1745524227307,16.1668,151.59,151.57,6.73863603]
[1745524227500,16.1668,151.59,151.56,23.72]
[1745524227807,16.1668,151.59,151.57,6.73898551]
[1745524228001,16.1668,151.59,151.56,23.72]
[1745524228204,16.1668,151.59,151.57,6.73874489]
[1745524228404,16.1668,151.59,151.58,6.73903344]
[1745524228606,16.1668,151.59,151.56,23.72]
[1745524228910,16.1668,151.59,151.57,6.73905948]
[1745524229111,6.5935,151.59,151.56,23.72]
[1745524229306,6.5935,151.59,151.57,6.73911893]
[1745524229507,6.5935,151.59,151.56,23.72]
[1745524229706,6.5935,151.59,151.57,6.73923423]
[1745524229906,6.5935,151.59,151.56,23.72]
[1745524230108,6.5935,151.59,151.57,6.73917486]
[1745524230309,6.5935,151.59,151.56,33.2933]
[1745524230510,6.5935,151.59,151.57,6.73915792]
[1745524230704,9.5733,151.61,151.58,6.73915792]
[1745524231611,6.5912,151.64,151.61,9.5733]
[1745524232006,1.8918,151.67,151.61,9.5733]
[1745524232312,9.5733,151.67,151.63,9.5733]
[1745524232512,9.5733,151.67,151.62,9.5733]
[1745524233112,9.5733,151.64,151.6,23.72]
[1745524233313,6.5924,151.61,151.6,23.72]
[1745524233515,6.5924,151.61,151.6,30.45491675]
[1745524234114,6.5924,151.61,151.6,30.45375711]
[1745524235315,6.5937,151.59,151.57,23.7]
[1745524235516,6.5937,151.59,151.58,6.73525435]
[1745524235910,6.5937,151.58,151.57,23.7]
[1745524236110,16.167,151.58,151.57,30.43576959]
[1745524238614,6.5948,151.56,151.54,23.7]
[1745524238814,6.5948,151.56,151.55,6.73864241]
[1745524240014,16.1681,151.56,151.55,6.73864241]
[1745524241419,16.1681,151.56,151.55,6.74099367]
[1745524242419,6.5948,151.56,151.55,6.74099367]
[1745524243218,16.1681,151.56,151.55,6.74359547]
[1745524244922,6.595,151.55,151.54,23.7]
[1745524245122,6.595,151.55,151.54,30.44608549]
[1745524245422,6.595,151.55,151.54,23.7]
[1745524245918,16.168,151.56,151.54,30.44634122]
[1745524246122,16.168,151.56,151.55,6.74634122]
[1745524249230,9.5733,151.56,151.55,6.74634122]
[1745524250327,16.1679,151.56,151.55,6.74634122]
[1745524251029,9.5733,151.56,151.51,30.2965]
[1745524251227,9.5733,151.53,151.51,30.2965]
[1745524251425,15.1338,151.63,151.42,62.3910189]
[1745524251426,9.5733,151.52,151.48,23.7]
[1745524251641,9.5733,151.5,151.49,6.75359538]
[1745524251827,9.5733,151.5,151.48,23.7]
[1745524253029,9.5733,151.5,151.48,30.298]
[1745524253230,9.5733,151.5,151.48,23.7]
[1745524253524,16.1705,151.5,151.48,23.7]
[1745524253829,16.1705,151.5,151.47,6.5982]
[1745524254030,9.5733,151.48,151.45,23.7]
[1745524254729,16.1716,151.48,151.45,30.2991]
[1745524256235,6.5983,151.48,151.46,6.5989]
[1745524256835,6.5983,151.48,151.45,30.2991]
[1745524257134,6.5986,151.47,151.45,30.2991]
[1745524257630,6.5982,151.48,151.45,30.2991]
[1745524258335,6.5982,151.48,151.46,6.5988]
[1745524258840,6.5982,151.48,151.45,30.2992]
[1745524259934,9.5733,151.48,151.45,23.7]
[1745524260134,9.5733,151.47,151.43,5.6828]
[1745524260337,9.5733,151.46,151.43,5.6828]
[1745524260533,9.5733,151.47,151.43,5.6828]
[1745524261033,6.5996,151.45,151.42,39.8936]
[1745524261233,6.5996,151.45,151.42,30.3203]
[1745524261636,6.5996,151.45,151.43,6.6002]
[1745524261936,16.1724,151.46,151.43,6.6002]
[1745524262640,16.1727,151.45,151.42,30.3205]
[1745524262838,9.5733,151.44,151.42,23.72]
[1745524264033,9.5733,151.46,151.42,23.72]
[1745524265337,9.5733,151.46,151.43,6.6]
[1745524266837,9.5733,151.45,151.42,30.3206]
[1745524267038,9.5733,151.44,151.42,30.3206]
[1745524268237,9.5733,151.45,151.42,30.3206]
[1745524268640,9.5733,151.45,151.43,6.6002]
[1745524269232,9.5733,151.45,151.42,30.3204]
[1745524270140,16.1727,151.45,151.42,30.3204]
[1745524270338,9.5733,151.45,151.42,30.3204]
[1745524271242,9.5733,151.45,151.43,6.6002]
[1745524273946,9.5733,151.45,151.42,30.3205]
[1745524274242,9.5733,151.45,151.42,23.72]
[1745524274436,9.5733,151.43,151.42,23.72]
[1745524276544,9.5733,151.45,151.42,23.72]